fUST/lending_fUST_20240301
["ID","MTS","AMOUNT","RATE_DAILY","PERIOD"]
[315886630,1709248240957,-989.13,0.00020899,2]
[315886631,1709248240966,-989.13,0.00020899,2]
[315886632,1709248240975,-989.13,0.00020899,2]
[315886633,1709248240984,-989.13,0.00020899,2]
[315886634,1709248240993,-989.13,0.00020899,2]
[315886635,1709248241002,-989.13,0.00020899,2]
[315886636,1709248241011,-989.13,0.00020899,2]
[315886637,1709248241020,-500.0,0.00020899,2]
[315886638,1709248241030,-500.0,0.00020899,2]
[315886639,1709248241039,-500.0,0.00020899,2]
[315886640,1709248241048,-500.0,0.00020899,2]
[315886641,1709248241059,-500.0,0.00020899,2]
[315886642,1709248241068,-500.0,0.00020899,2]
[315886643,1709248241077,-500.0,0.00020899,2]
[315886644,1709248241086,-500.0,0.00020899,2]
[315886645,1709248241095,-500.0,0.00020899,2]
[315886646,1709248241103,-500.0,0.00020899,2]
[315886647,1709248241113,-500.0,0.00020899,2]
[315886648,1709248241121,-500.0,0.00020899,2]
[315886649,1709248241130,-500.0,0.00020899,2]
[315886650,1709248241139,-500.0,0.00020899,2]
[315886651,1709248241148,-500.0,0.00020899,2]
[315886652,1709248241157,-500.0,0.00020899,2]
[315886653,1709248241166,-500.0,0.00020899,2]
[315886654,1709248241174,-500.0,0.00020899,2]
[315886655,1709248241184,-398.06,0.00020899,2]
[315886656,1709248241193,-500.0,0.00020899,2]
[315886657,1709248241201,-500.0,0.00020899,2]
[315886658,1709248241211,-500.0,0.00020899,2]
[315886659,1709248241220,-500.0,0.00020899,2]
[315886660,1709248241229,-500.0,0.00020899,2]
[315886661,1709248241238,-500.0,0.00020899,2]
[315886662,1709248241247,-500.0,0.00020899,2]
[315886663,1709248241257,-500.0,0.00020899,2]
[315886664,1709248241266,-500.0,0.00020899,2]
[315886665,1709248241275,-569.24,0.00020899,2]
[315886666,1709248241283,-500.0,0.00020899,2]
[315886667,1709248241292,-228.38,0.00020899,2]
[315886668,1709248241303,-151.0,0.00020899,2]
[315886669,1709248241313,-100351.91601517,0.000209,2]
[315886670,1709248241368,-8845.29323372,0.000209,2]
[315886671,1709248241395,-100002.5000625,0.000209,2]
[315886672,1709248241406,-5577.08676965,0.000209,2]
[315886673,1709248241461,-61223.20391896,0.000209,2]
[315886675,1709248241471,-500.0,0.000209,2]
[315886677,1709248241480,-500.0,0.00020997,2]
[315886679,1709248241490,-500.0,0.00020997,2]
[315886681,1709248241499,-500.0,0.00020997,2]
[315886682,1709248241509,-2483.87,0.00020997,2]
[315886683,1709248241518,-1473.49,0.00020997,2]
[315886684,1709248241527,-1952.71,0.00020997,2]
[315886685,1709248241536,-1952.71,0.00020997,2]
[315886686,1709248241545,-500.0,0.00020997,2]
[315886687,1709248241555,-989.13,0.00020997,2]
[315886688,1709248241564,-500.0,0.00020997,2]
[315886689,1709248241574,-500.0,0.00020997,2]
[315886690,1709248241583,-500.0,0.00020997,2]
[315886691,1709248241594,-1634.53366324,0.00020998,2]
[315886692,1709248241605,-623.38533298,0.00020998,2]
[315886693,1709248241614,-316.07662917,0.00020998,2]
[315886694,1709248241623,-500.0,0.00020998,2]
[315886695,1709248241632,-500.0,0.00020998,2]
[315886696,1709248241641,-240.86,0.00020998,2]
[315886697,1709248241651,-500.0,0.00020998,2]
[315886698,1709248241659,-500.0,0.00020998,2]
[315886699,1709248241669,-284.52939618,0.00020998,2]
[315886700,1709248241678,-500.0,0.00020998,2]
[315886701,1709248241686,-500.0,0.00020998,2]
[315886702,1709248241695,-500.0,0.00020998,2]
[315886703,1709248241704,-370.42,0.00020998,2]
[315886704,1709248241713,-500.0,0.00020998,2]
[315886705,1709248241722,-500.0,0.00020998,2]
[315886706,1709248241731,-500.0,0.00020998,2]
[315886707,1709248241741,-500.0,0.00020998,2]
[315886708,1709248241750,-500.0,0.00020998,2]
[315886709,1709248241759,-500.0,0.00020998,2]
[315886710,1709248241768,-500.0,0.00020998,2]
[315886711,1709248241778,-515.74,0.00020998,2]
[315886712,1709248241787,-1340.94420069,0.00020998,2]
[315886713,1709248241803,-1142.92579931,0.00020998,2]
[315886714,1709248241812,-2483.87,0.00020998,2]
[315886715,1709248241821,-1280.29420069,0.00020998,2]
[315886726,1709248243575,-1203.57579931,0.00020998,2]
[315886727,1709248243585,-2483.87,0.00020998,2]
[315886728,1709248243598,-1473.49,0.00020998,2]
[315886729,1709248243609,-1473.49,0.00020998,2]
[315886730,1709248243618,-1473.49,0.00020998,2]
[315886731,1709248243627,-1473.49,0.00020998,2]
[315886732,1709248243637,-1952.71,0.00020998,2]
[315886733,1709248243647,-1952.71,0.00020998,2]
[315886735,1709248243657,-1952.71,0.00020998,2]
[315886736,1709248243668,-500.0,0.00020998,2]
[315886737,1709248243678,-500.0,0.00020998,2]
[315886738,1709248243687,-500.0,0.00020998,2]
[315886739,1709248243696,-500.0,0.00020998,2]
[315886740,1709248243705,-500.0,0.00020998,2]
[315886741,1709248243714,-500.0,0.00020998,2]
[315886742,1709248243724,-989.13,0.00020998,2]
[315886743,1709248243733,-989.13,0.00020998,2]
[315886744,1709248243742,-989.13,0.00020998,2]
[315886745,1709248243751,-989.13,0.00020998,2]
[315886746,1709248243761,-500.0,0.00020998,2]
[315886747,1709248243770,-500.0,0.00020998,2]
[315886748,1709248243779,-500.0,0.00020998,2]
[315886749,1709248243789,-500.0,0.00020998,2]
[315886750,1709248243799,-500.0,0.00020998,2]
[315886751,1709248243809,-500.0,0.00020998,2]
[315886752,1709248243819,-500.0,0.00020998,2]
[315886753,1709248243829,-500.0,0.00020998,2]
[315886754,1709248243838,-500.0,0.00020998,2]
[315886755,1709248243847,-500.0,0.00020998,2]
[315886756,1709248243856,-446.72,0.00020998,2]
[315886757,1709248243866,-500.0,0.00020998,2]
[315886758,1709248243875,-500.0,0.00020998,2]
[315886759,1709248243885,-500.0,0.00020998,2]
[315886760,1709248243894,-500.0,0.00020998,2]
[315886761,1709248243903,-162.3,0.00020999,2]
[315886762,1709248243913,-500.0,0.00020999,2]
[315886763,1709248243922,-500.0,0.00020999,2]
[315886764,1709248243932,-500.0,0.00020999,2]
[315886765,1709248243941,-500.0,0.00020999,2]
[315886766,1709248243951,-273.24,0.00020999,2]
[315886767,1709248243960,-500.0,0.00020999,2]
[315886768,1709248243970,-500.0,0.00020999,2]
[315886769,1709248243979,-500.0,0.00020999,2]
[315886770,1709248243988,-537.96,0.00020999,2]
[315886771,1709248243998,-2483.87,0.00020999,2]
[315886772,1709248244007,-2483.87,0.00020999,2]
[315886773,1709248244016,-2483.87,0.00020999,2]
[315886774,1709248244025,-2483.87,0.00020999,2]
[315886775,1709248244035,-2483.87,0.00020999,2]
[315886776,1709248244044,-2483.87,0.00020999,2]
[315886777,1709248244054,-1473.49,0.00020999,2]
[315886778,1709248244063,-1162.75267221,0.00020999,2]
[315886871,1709249438705,-428.53017255,0.00018899,2]
[315886873,1709249438714,-778.53846103,0.000189,2]
[315886875,1709249438723,-168.218798,0.00019435,2]
[315886877,1709249438732,-5561.4140765,0.00019542,2]
[315886879,1709249438741,-500.0,0.00020547,2]
[315886883,1709249438760,-500.0,0.00020547,2]
[315886886,1709249438770,-500.0,0.00020547,2]
[315886888,1709249438779,-620.03173977,0.00020604,2]
[315886890,1709249438788,-552.56,0.00020797,2]
[315886892,1709249438797,-500.0,0.00020797,2]
[315886894,1709249438806,-500.0,0.00020797,2]
[315886897,1709249438816,-500.0,0.00020797,2]
[315886899,1709249438825,-500.0,0.00020797,2]
[315886901,1709249438834,-590.38,0.00020797,2]
[315886903,1709249438843,-180.94,0.00020797,2]
[315886905,1709249438852,-500.0,0.00020797,2]
[315886907,1709249438862,-500.0,0.00020797,2]
[315886909,1709249438870,-467.59526548,0.00020797,2]
[315886911,1709249438879,-500.0,0.00020797,2]
[315886913,1709249438888,-500.0,0.00020797,2]
[315886915,1709249438898,-500.0,0.00020797,2]
[315886917,1709249438907,-500.0,0.00020797,2]
[315886919,1709249438916,-187.33386723,0.00020798,2]
[315886921,1709249438925,-1501.59141507,0.00020798,2]
[315887002,1709249441707,-21646.43072489,0.00020798,2]
[315887005,1709249441719,-2034.75599286,0.00020798,2]
[315887007,1709249441731,-5149.17331751,0.00020798,2]
[315887429,1709249446649,-301.84221,0.00020798,2]
[315897597,1709250632017,-364.19083383,0.000189,2]
[315897650,1709250637759,-154.83480686,0.000189,2]
[315897652,1709250637770,-559.0,0.00019,2]
[315897654,1709250637779,-347.1790068,0.00019746,2]
[315897660,1709250637832,-8628.4145891,0.00019746,2]
[315897662,1709250637841,-232.912924,0.00019786,2]
[315897664,1709250637856,-300.0,0.00020185,2]
[315897666,1709250637866,-280.40092179,0.00020186,5]
[315897668,1709250637875,-226.47072765,0.00020299,5]
[315897973,1709250640878,-346.01709379,0.000189,2]
[315897975,1709250640887,-128.01702003,0.00020299,5]
[315897977,1709250640899,-645.51225232,0.00020299,5]
[315897979,1709250640908,-500.0,0.00020797,2]
[315897981,1709250640917,-500.0,0.00020797,2]
[315897983,1709250640926,-316.07662917,0.00020798,2]
[315897985,1709250640936,-164.31875003,0.00020899,2]
[315897987,1709250640945,-164.31875003,0.000209,2]
[315897989,1709250640953,-710.59818918,0.000209,2]
[315898334,1709250645860,-351.10475835,0.000209,2]
[315898352,1709251832218,-155.03255684,0.00018888,2]
[315898353,1709251832228,-155.03255684,0.00018889,2]
[315898354,1709251832238,-455.03273041,0.000189,2]
[315898355,1709251832247,-2685.81737052,0.000189,2]
[315898356,1709251832258,-232.912924,0.00018999,2]
[315898357,1709251832267,-164.343101,0.00019178,2]
[315898358,1709251832276,-1686.7154849,0.0001934,2]
[315898359,1709251832286,-162.238783,0.00019386,2]
[315898360,1709251832295,-249.5002275,0.00019545,2]
[315898361,1709251832305,-313.98950271,0.00019585,2]
[315898394,1709251838188,-2168.65805499,0.00019585,2]
[315898395,1709251838199,-635.32659493,0.00019645,2]
[315898396,1709251838209,-477.93445143,0.00019988,4]
[315898397,1709251838219,-312.798953,0.0002,2]
[315898398,1709251838228,-155.0,0.0002,2]
[315898399,1709251838238,-383.8386927,0.00020192,2]
[315898401,1709251838247,-306.0,0.00020192,2]
[315898403,1709251838257,-103.96563845,0.00020192,2]
[315898447,1709251841126,-202.03436155,0.00020192,2]
[315898448,1709251841136,-153.0,0.00020192,2]
[315898449,1709251841146,-153.0,0.00020192,2]
[315898450,1709251841155,-153.0,0.00020192,2]
[315898451,1709251841165,-153.0,0.00020192,2]
[315898452,1709251841175,-252.64039127,0.00020789,2]
[315898458,1709251846063,-303.3551536,0.000189,2]
[315898459,1709251846077,-747.35960873,0.00020789,2]
[315898460,1709251846091,-188.67607046,0.00020798,2]
[315898461,1709251846103,-244.72080953,0.00020799,2]
[315898462,1709251846115,-244.72080951,0.00020824,2]
[315898463,1709251846127,-244.72080951,0.00020849,2]
[315898464,1709251846140,-1000.0,0.00020852,2]
[315898465,1709251846153,-8144.06728302,0.00020858,2]
[315898466,1709251846164,-244.72080951,0.00020873,2]
[315898467,1709251846174,-150.98,0.00020889,3]
[315898468,1709251846184,-452.96,0.00020889,3]
[315898469,1709251846196,-1171.23,0.00020889,3]
[315898470,1709251846207,-500.0,0.00020898,2]
[315898471,1709251846218,-500.0,0.00020898,2]
[315898472,1709251846230,-500.0,0.00020898,2]
[315898473,1709251846240,-500.0,0.00020898,2]
[315898474,1709251846251,-500.0,0.00020898,2]
[315898475,1709251846262,-516.79,0.00020898,2]
[315898476,1709251846272,-500.0,0.00020898,2]
[315898477,1709251846283,-500.0,0.00020898,2]
[315898478,1709251846294,-500.0,0.00020898,2]
[315898479,1709251846304,-500.0,0.00020898,2]
[315898480,1709251846315,-500.0,0.00020898,2]
[315898481,1709251846326,-500.0,0.00020898,2]
[315898482,1709251846337,-500.0,0.00020898,2]
[315898483,1709251846347,-580.57,0.00020898,2]
[315898484,1709251846357,-299.64415261,0.00020898,2]
[315898485,1709251846366,-664.62,0.00020898,2]
[315898486,1709251846379,-664.62,0.00020898,2]
[315898487,1709251846390,-664.62,0.00020898,2]
[315898488,1709251846401,-664.62,0.00020898,2]
[315898489,1709251846412,-664.62,0.00020898,2]
[315898490,1709251846424,-664.62,0.00020898,2]
[315898491,1709251846435,-500.0,0.00020898,2]
[315898492,1709251846446,-500.0,0.00020898,2]
[315898493,1709251846456,-500.0,0.00020898,2]
[315898494,1709251846467,-500.0,0.00020898,2]
[315898495,1709251846477,-500.0,0.00020898,2]
[315898496,1709251846488,-500.0,0.00020898,2]
[315898497,1709251846499,-500.0,0.00020898,2]
[315898498,1709251846510,-500.0,0.00020898,2]
[315898499,1709251846522,-500.0,0.00020898,2]
[315898500,1709251846533,-1157.7,0.00020898,2]
[315898501,1709251846545,-1157.7,0.00020898,2]
[315898502,1709251846556,-1157.7,0.00020898,2]
[315898503,1709251846566,-1157.7,0.00020898,2]
[315898504,1709251846577,-1157.7,0.00020898,2]
[315898505,1709251846587,-1157.7,0.00020898,2]
[315898506,1709251846597,-500.0,0.00020898,2]
[315898507,1709251846609,-569.99,0.00020898,2]
[315898508,1709251846623,-500.0,0.00020898,2]
[315898509,1709251846633,-500.0,0.00020898,2]
[315898510,1709251846645,-244.72080951,0.00020898,2]
[315898511,1709251846657,-500.0,0.00020898,2]
[315898512,1709251846669,-500.0,0.00020898,2]
[315898513,1709251846680,-500.0,0.00020898,2]
[315898514,1709251846692,-348.09,0.00020898,2]
[315898515,1709251846703,-500.0,0.00020898,2]
[315898516,1709251846714,-500.0,0.00020898,2]
[315898517,1709251846725,-500.0,0.00020898,2]
[315898518,1709251846736,-257.0,0.00020898,2]
[315898519,1709251846748,-500.0,0.00020898,2]
[315898520,1709251846759,-500.0,0.00020898,2]
[315898521,1709251846771,-327.18,0.00020898,2]
[315898522,1709251846782,-500.0,0.00020898,2]
[315898523,1709251846794,-91547.37526662,0.00020899,2]
[315898524,1709251846810,-819.74779499,0.00020899,2]
[315898525,1709251846824,-1392.97590201,0.00020899,2]
[315898526,1709251846873,-403.62551181,0.00020899,2]
[315898527,1709251846888,-151202.48186424,0.00020899,2]
[315898528,1709251846899,-1157.7,0.00020899,2]
[315898529,1709251846910,-15657.59128209,0.000209,2]
[315898530,1709251846922,-421.85189728,0.000209,2]
[315898531,1709251846934,-1001.83540726,0.00020965,2]
[315898532,1709251846944,-664.62,0.00020996,2]
[315898533,1709251846954,-500.0,0.00020996,2]
[315898534,1709251846964,-1157.7,0.00020996,2]
[315898535,1709251846974,-500.0,0.00020997,2]
[315898536,1709251846984,-500.0,0.00020997,2]
[315898537,1709251846994,-500.0,0.00020997,2]
[315898538,1709251847005,-500.0,0.00020997,2]
[315898539,1709251847016,-500.0,0.00020997,2]
[315898540,1709251847028,-500.0,0.00020997,2]
[315898541,1709251847040,-500.0,0.00020997,2]
[315898542,1709251847051,-500.0,0.00020997,2]
[315898543,1709251847064,-500.0,0.00020997,2]
[315898544,1709251847074,-500.0,0.00020997,2]
[315898545,1709251847085,-500.0,0.00020997,2]
[315898546,1709251847095,-500.0,0.00020997,2]
[315898547,1709251847107,-290.17876149,0.00020997,2]
[315898548,1709251847119,-500.0,0.00020997,2]
[315898549,1709251847132,-500.0,0.00020997,2]
[315898550,1709251847143,-500.0,0.00020997,2]
[315898551,1709251847154,-463.05651627,0.00020997,2]
[315898552,1709251847165,-500.0,0.00020997,2]
[315898553,1709251847177,-500.0,0.00020997,2]
[315898554,1709251847187,-500.0,0.00020997,2]
[315898555,1709251847197,-500.0,0.00020997,2]
[315898556,1709251847207,-500.0,0.00020997,2]
[315898557,1709251847218,-500.0,0.00020997,2]
[315898558,1709251847230,-1047.92,0.00020997,2]
[315898559,1709251847243,-500.0,0.00020997,2]
[315898560,1709251847253,-500.0,0.00020997,2]
[315898561,1709251847264,-500.0,0.00020997,2]
[315898562,1709251847277,-500.0,0.00020997,2]
[315898563,1709251847288,-500.0,0.00020997,2]
[315898564,1709251847300,-500.0,0.00020997,2]
[315898565,1709251847312,-664.62,0.00020997,2]
[315898566,1709251847324,-664.62,0.00020997,2]
[315898567,1709251847334,-500.0,0.00020997,2]
[315898568,1709251847345,-500.0,0.00020997,2]
[315898569,1709251847355,-500.0,0.00020997,2]
[315898570,1709251847365,-500.0,0.00020997,2]
[315898571,1709251847376,-500.0,0.00020997,2]
[315898572,1709251847386,-500.0,0.00020997,2]
[315898573,1709251847398,-500.0,0.00020997,2]
[315898574,1709251847407,-437.16,0.00020997,2]
[315898575,1709251847417,-1157.7,0.00020997,2]
[315898576,1709251847427,-1157.7,0.00020997,2]
[315898577,1709251847437,-500.0,0.00020997,2]
[315898578,1709251847610,-500.0,0.00020997,2]
[315898579,1709251847620,-500.0,0.00020997,2]
[315898580,1709251847631,-500.0,0.00020997,2]
[315898581,1709251847641,-500.0,0.00020997,2]
[315898582,1709251847651,-583.07,0.00020997,2]
[315898583,1709251847661,-583.07,0.00020997,2]
[315898584,1709251847672,-500.0,0.00020997,2]
[315898585,1709251847681,-500.0,0.00020997,2]
[315898586,1709251847691,-500.0,0.00020997,2]
[315898587,1709251847700,-500.0,0.00020997,2]
[315898588,1709251847709,-500.0,0.00020997,2]
[315898589,1709251847718,-500.0,0.00020997,2]
[315898590,1709251847728,-500.0,0.00020997,2]
[315898591,1709251847737,-500.0,0.00020997,2]
[315898592,1709251847748,-500.0,0.00020997,2]
[315898593,1709251847759,-500.0,0.00020997,2]
[315898594,1709251847769,-500.0,0.00020997,2]
[315898595,1709251847778,-500.0,0.00020997,2]
[315898596,1709251847787,-500.0,0.00020997,2]
[315898597,1709251847796,-500.0,0.00020997,2]
[315898598,1709251847806,-500.0,0.00020997,2]
[315898599,1709251847815,-500.0,0.00020997,2]
[315898600,1709251847825,-500.0,0.00020997,2]
[315898601,1709251847834,-500.0,0.00020997,2]
[315898602,1709251847843,-500.0,0.00020997,2]
[315898603,1709251847853,-500.0,0.00020997,2]
[315898604,1709251847862,-500.0,0.00020997,2]
[315898605,1709251847871,-500.0,0.00020997,2]
[315898606,1709251847881,-500.0,0.00020997,2]
[315898607,1709251847890,-169.89897542,0.00020998,2]
[315898608,1709251847900,-428.32645767,0.00020998,2]
[315898609,1709251847909,-4276.38168783,0.00020998,2]
[315898610,1709251847918,-1426.92090632,0.00020998,2]
[315898611,1709251847928,-159.81994913,0.00020998,2]
[315898612,1709251847936,-500.0,0.00020998,2]
[315898613,1709251847946,-500.0,0.00020998,2]
[315898614,1709251847955,-500.0,0.00020998,2]
[315898615,1709251847964,-500.0,0.00020998,2]
[315898616,1709251847973,-649.34628108,0.00020998,2]
[315898617,1709251847982,-500.0,0.00020998,2]
[315898618,1709251847991,-500.88715214,0.00020998,2]
[315898619,1709251848000,-500.0,0.00020998,2]
[315898620,1709251848009,-500.0,0.00020998,2]
[315898621,1709251848018,-500.0,0.00020998,2]
[315898622,1709251848028,-500.0,0.00020998,2]
[315898623,1709251848037,-500.0,0.00020998,2]
[315898624,1709251848046,-500.50541851,0.00020998,2]
[315898625,1709251848055,-500.0,0.00020998,2]
[315898626,1709251848066,-500.0,0.00020998,2]
[315898627,1709251848075,-500.0,0.00020998,2]
[315898628,1709251848086,-500.99987678,0.00020998,2]
[315898629,1709251848095,-625.71403396,0.00020998,2]
[315898630,1709251848104,-500.0,0.00020998,2]
[315898631,1709251848113,-500.0,0.00020998,2]
[315898632,1709251848124,-500.0,0.00020998,2]
[315898633,1709251848134,-500.0,0.00020998,2]
[315898634,1709251848143,-301.65407508,0.00020998,2]
[315898635,1709251848152,-500.0,0.00020998,2]
[315898636,1709251848161,-500.0,0.00020998,2]
[315898637,1709251848170,-500.0,0.00020998,2]
[315898638,1709251848181,-501.11630896,0.00020998,2]
[315898639,1709251848189,-643.09717717,0.00020998,2]
[315898640,1709251848198,-500.0,0.00020998,2]
[315898641,1709251848208,-500.0,0.00020998,2]
[315898642,1709251848218,-500.0,0.00020998,2]
[315898643,1709251848227,-500.0,0.00020998,2]
[315898644,1709251848235,-500.0,0.00020998,2]
[315898645,1709251848244,-500.0,0.00020998,2]
[315898646,1709251848253,-500.0,0.00020998,2]
[315898647,1709251848263,-500.0,0.00020998,2]
[315898648,1709251848272,-500.0,0.00020998,2]
[315898649,1709251848281,-500.0,0.00020998,2]
[315898650,1709251848291,-500.0,0.00020998,2]
[315898651,1709251848300,-500.0,0.00020998,2]
[315898652,1709251848309,-500.0,0.00020998,2]
[315898653,1709251848320,-500.0,0.00020998,2]
[315898654,1709251848329,-500.0,0.00020998,2]
[315898655,1709251848340,-500.0,0.00020998,2]
[315898656,1709251848349,-500.0,0.00020998,2]
[315898657,1709251848360,-500.2421037,0.00020998,2]
[315898658,1709251848370,-500.0,0.00020998,2]
[315898659,1709251848382,-500.0,0.00020998,2]
[315898660,1709251848392,-500.0,0.00020998,2]
[315898661,1709251848403,-500.0,0.00020998,2]
[315898662,1709251848413,-500.0,0.00020998,2]
[315898663,1709251848423,-500.0,0.00020998,2]
[315898664,1709251848434,-483.72738854,0.00020998,2]
[315898665,1709251848444,-500.0,0.00020998,2]
[315898666,1709251848454,-500.0,0.00020998,2]
[315898667,1709251848464,-500.0,0.00020998,2]
[315898668,1709251848474,-500.0,0.00020998,2]
[315898669,1709251848484,-200.46304415,0.00020998,2]
[315898670,1709251848494,-513.93926207,0.00020998,2]
[315898671,1709251848504,-500.0,0.00020998,2]
[315898672,1709251848514,-500.0,0.00020998,2]
[315898673,1709251848524,-500.0,0.00020998,2]
[315898674,1709251848535,-500.0,0.00020998,2]
[315898675,1709251848545,-500.0,0.00020998,2]
[315898676,1709251848555,-491.05,0.00020998,2]
[315898677,1709251848565,-500.0,0.00020998,2]
[315898678,1709251848576,-500.0,0.00020998,2]
[315898679,1709251848586,-500.0,0.00020998,2]
[315898680,1709251848596,-500.0,0.00020998,2]
[315898681,1709251848607,-500.0,0.00020998,2]
[315898682,1709251848617,-500.0,0.00020998,2]
[315898683,1709251848629,-245.55365273,0.00020998,2]
[315898684,1709251848639,-400.75162755,0.00020998,2]
[315898685,1709251848650,-500.0,0.00020998,2]
[315898686,1709251848661,-500.0,0.00020998,2]
[315898687,1709251848671,-500.0,0.00020998,2]
[315898688,1709251848680,-500.0,0.00020998,2]
[315898689,1709251848690,-500.0,0.00020998,2]
[315898690,1709251848701,-327.64198413,0.00020998,2]
[315898691,1709251848712,-564.91,0.00020998,2]
[315898692,1709251848722,-564.91,0.00020998,2]
[315898693,1709251848732,-500.0,0.00020998,2]
[315898694,1709251848742,-500.0,0.00020998,2]
[315898695,1709251848751,-500.0,0.00020998,2]
[315898696,1709251848761,-1047.92,0.00020998,2]
[315898697,1709251848770,-1047.92,0.00020998,2]
[315898698,1709251848780,-500.0,0.00020998,2]
[315898699,1709251848790,-500.0,0.00020998,2]
[315898700,1709251848800,-500.0,0.00020998,2]
[315898701,1709251848811,-500.0,0.00020998,2]
[315898702,1709251848820,-500.0,0.00020998,2]
[315898703,1709251848829,-500.0,0.00020998,2]
[315898704,1709251848839,-500.0,0.00020998,2]
[315898705,1709251848849,-664.62,0.00020998,2]
[315898706,1709251848859,-664.62,0.00020998,2]
[315898707,1709251848870,-664.62,0.00020998,2]
[315898708,1709251848880,-306.1,0.00020998,2]
[315898709,1709251848891,-225.5,0.00020998,2]
[315898710,1709251848901,-1157.7,0.00020998,2]
[315898711,1709251848910,-298.50621078,0.00020998,2]
[315898712,1709252173498,2000.0,0.00021,30]
[315898713,1709252173938,2000.0,0.0002101,30]
[315898714,1709252174359,2490.380365,0.0002102,30]
[315898752,1709253032344,-155.03875969,0.00018899,2]
[315898754,1709253032353,-281.96286299,0.000189,2]
[315898755,1709253032363,-641.80837732,0.00019424,2]
[315898770,1709253038195,-340.80038775,0.00019424,2]
[315898773,1709253038207,-1186.04928983,0.00019424,2]
[315898775,1709253038216,-427.8139711,0.00019472,2]
[315898777,1709253038225,-300.0,0.00019519,2]
[315898779,1709253038235,-4875.21962794,0.0001952,2]
[315898781,1709253038247,-10011.71719096,0.0001952,2]
[315898783,1709253038257,-6496.69018806,0.00019675,2]
[315898786,1709253038276,-1984.01179553,0.00019675,2]
[315898794,1709253038340,-551.11168981,0.00019675,2]
[315898796,1709253038349,-155.0,0.0002,2]
[315898798,1709253038358,-174.71870744,0.00020698,2]
[315898800,1709253038368,-908.25133745,0.00020698,2]
[315898802,1709253038377,-306.0,0.000207,2]
[315898804,1709253038387,-181.8043312,0.000207,2]
[315898806,1709253038397,-153.0,0.000207,2]
[315898808,1709253038407,-153.0,0.000207,2]
[315898810,1709253038416,-153.0,0.000207,2]
[315898812,1709253038425,-306.0,0.000207,2]
[315898814,1709253038435,-174.71870742,0.00020765,2]
[315898816,1709253038444,-768.92,0.00020788,3]
[315898818,1709253038453,-301.96,0.00020789,3]
[315898820,1709253038463,-614.65,0.00020796,2]
[315898822,1709253038472,-2520.49395549,0.00020797,3]
[315898968,1709253041428,-6296.05,0.00020797,3]
[315899019,1709253043222,-847.88,0.00020789,3]
[315899021,1709253043232,-1031.16617708,0.00020797,3]
[315899126,1709253046283,-1402.50695084,0.00020797,3]
[315899128,1709253046294,-500.0,0.00020797,2]
[315899131,1709253046305,-500.0,0.00020797,2]
[315899133,1709253046316,-500.0,0.00020798,2]
[315899135,1709253046326,-500.0,0.00020798,2]
[315899137,1709253046337,-500.0,0.00020798,2]
[315899139,1709253046347,-500.0,0.00020798,2]
[315899141,1709253046358,-500.0,0.00020798,2]
[315899143,1709253046369,-500.0,0.00020798,2]